[Event "FIDE WCCC Open-12 2024"]
[Site "Montesilvano"]
[Date "2024.11.19"]
[Round "5.35"]
[White "Vorobyov, Radmir"]
[Black "Zhang, Sean"]
[Result "0-1"]
[ECO "D02"]
[WhiteElo "2017"]
[BlackElo "1789"]
[Annotator "RC"]
[PlyCount "118"]
[EventDate "2024.11.18"]
[EventType "swiss"]
[EventCountry "ITA"]
[SourceTitle "playchess.com"]
[Source "ChessBase"]
[SourceQuality "1"]
[TimeControl "5400+30"]

1. d4 {[%emt 0:00:02]} Nf6 {[%emt 0:00:06]} 2. Nf3 {[%emt 0:00:04]} d5 {[%emt 0:00:09]} 3. g3 {[%emt 0:00:03]} Bf5 {[%emt 0:00:20]} 4. Bg2 {[%emt 0:00:05]} e6 {[%emt 0:00:06]} 5. O-O {[%emt 0:00:07]} c5 {[%emt 0:00:17]} 6. b3 {[%emt 0:01:14]} Nc6 {[%emt 0:00:09]} 7. e3 {[%emt 0:00:35]} Be7 {[%emt 0:00:13]} 8. Bb2 {[%emt 0:00:06]} O-O {[%emt 0:00:14]} 9. Ne5 {[%emt 0:01:15]} h6 {[%emt 0:00:57]} 10. Nd2 {[%emt 0:03:09]} Nd7 {[%emt 0:02:25]} 11. c4 {[%emt 0:12:10]} Ndxe5 {[%emt 0:02:14]} 12. dxe5 {[%emt 0:00:09]} Bd3 {[%emt 0:01:01]} 13. Re1 {[%emt 0:00:13]} Nb4 {[%emt 0:01:39]} 14. Bf1 {[%emt 0:05:53]} Bxf1 {[%emt 0:02:36]} 15. Rxf1 {[%emt 0:00:17]} Nd3 {[%emt 0:00:20]} 16. Qc2 {[%emt 0:01:29]} Nb4 {[%emt 0:02:16]} 17. Qb1 {[%emt 0:02:58]} Nc6 {[%emt 0:04:21]} 18. Rd1 {[%emt 0:06:07]} Qc7 {[%emt 0:03:59]} 19. f4 {[%emt 0:06:21]} Rad8 {[%emt 0:01:00]} 20. e4 {[%emt 0:06:24]} d4 {[%emt 0:00:20]} 21. Nf3 {[%emt 0:00:09]} a6 {[%emt 0:00:18]} 22. a3 {[%emt 0:01:46]} b5 {[%emt 0:01:30]} 23. cxb5 {[%emt 0:02:18]} axb5 {[%emt 0:00:16]} 24. Qd3 {[%emt 0:00:07]} Qb6 {[%emt 0:00:45]} 25. Rac1 {[%emt 0:06:24]} Rc8 {[%emt 0:02:24]} 26. Kh1 {[%emt 0:03:29]} Rfd8 {[%emt 0:00:56]} 27. Nd2 {[%emt 0:04:11]} Ra8 {[%emt 0:05:47]} 28. Rc2 {[%emt 0:05:55]} Qb7 {[%emt 0:01:23]} 29. Kg1 {[%emt 0:06:03]} Qb6 {[%emt 0:01:56]} 30. Kg2 {[%emt 0:01:30]} Qb7 {[%emt 0:00:57]} 31. Kh3 {[%emt 0:00:45]} Rab8 {[%emt 0:04:35]} 32. Qf3 {[%emt 0:05:54]} Qd7 {[%emt 0:04:44]} 33. Qg4 {[%emt 0:02:03]} g6 {[%emt 0:05:26]} 34. Kg2 {[%emt 0:02:18]} Kg7 {[%emt 0:01:12]} 35. h4 {[%emt 0:01:58]} h5 {[%emt 0:00:35]} 36. Qh3 {[%emt 0:03:04]} d3 {[%emt 0:01:52]} 37. Rcc1 {[%emt 0:11:15]} Nd4 {[%emt 0:04:30]} 38. Nf3 {[%emt 0:00:49]} Nxf3 {[%emt 0:08:27]} 39. Kxf3 {[%emt 0:00:07]} c4 {[%emt 0:00:49]} 40. b4 {[%emt 0:01:06]} Rbc8 {[%emt 0:01:54]} 41. f5 {[%emt 0:00:21]} Kg8 {[%emt 0:03:38]} 42. f6 {[%emt 0:00:21]} Bf8 {[%emt 0:01:02]} 43. Kg2 {[%emt 0:00:47]} Qb7 {[%emt 0:00:21]} 44. Kf3 {[%emt 0:00:26]} Bh6 {[%emt 0:00:15]} 45. g4 {[%emt 0:00:23]} hxg4+ {[%emt 0:01:18]} 46. Qxg4 {[%emt 0:00:08]} Qa7 {[%emt 0:00:28]} 47. h5 {[%emt 0:01:03]} Qe3+ {[%emt 0:00:19]} 48. Kg2 {[%emt 0:00:06]} Qe2+ {[%emt 0:00:51]} 49. Qxe2 {[%emt 0:01:00]} dxe2 {[%emt 0:00:04]} 50. Rxd8+ {[%emt 0:00:08]} Rxd8 {[%emt 0:00:06]} 51. Re1 {[%emt 0:00:16]} Rd2 {[%emt 0:00:23]} 52. Bc1 {[%emt 0:01:02]} Rd1 {[%emt 0:00:37]} 53. Rxe2 {[%emt 0:00:32]} Rxc1 {[%emt 0:00:08]} 54. hxg6 {[%emt 0:00:04]} fxg6 {[%emt 0:00:13]} 55. Kf3 {[%emt 0:00:21]} c3 {[%emt 0:00:38]} 56. a4 {[%emt 0:00:30]} bxa4 {[%emt 0:00:09]} 57. Ra2 {[%emt 0:01:04]} c2 {[%emt 0:00:42]} 58. Ke2 {[%emt 0:00:17]} Re1+ {[%emt 0:00:12]} 59. Kxe1 {[%emt 0:00:27]} c1=Q+ {[%emt 0:00:05]} 0-1

[Event "FIDE WCCC Open-12 2024"]
[Site "Montesilvano"]
[Date "2024.11.19"]
[Round "5.36"]
[White "Nguyen, Anh Khoi"]
[Black "Mai, Duc Kien"]
[Result "1/2-1/2"]
[ECO "A15"]
[WhiteElo "2520"]
[BlackElo "1771"]
[Annotator "TA"]
[PlyCount "57"]
[EventDate "2024.11.18"]
[EventType "swiss"]
[EventCountry "ITA"]
[SourceTitle "playchess.com"]
[Source "ChessBase"]
[SourceQuality "1"]
[TimeControl "5400+30"]

{[%evp 9,57,29,35,30,52,41,54,44,37,44,33,36,41,8,0,-27,0,6,10,5,59,29,66,0,0,-82,-53,-54,-59,-57,-60,-57,-57,-69,-52,-73,-83,-105,-100,-116,0,0,0,0,51,23,93,15,42,-39]} 1. c4 {[%emt 0:00:02]} Nf6 {[%emt 0:00:14]} 2. g3 {[%emt 0:00:11]} g6 {[%emt 0:00:17]} 3. Bg2 {[%emt 0:01:27]} d5 {[%emt 0:00:50]} 4. cxd5 {[%emt 0:00:13]} Nxd5 {[%emt 0:00:07]} 5. Qb3 {[%emt 0:02:14]} Nb6 {[%emt 0:01:00]} 6. Qc3 {[%emt 0:00:34] Prevents Bg7.} Rg8 {[%emt 0:06:27]} 7. Nf3 {[%emt 0:02:54]} Bg7 {[%emt 0:03:28]} 8. d4 {[%emt 0:03:21]} Nc6 {[%emt 0:01:48]} 9. e3 $1 {[%emt 0:01:17]} Be6 {[%emt 0:09:24]} 10. O-O {[%emt 0:03:29]} Qd7 {[%emt 0:02:03]} 11. Rd1 {[%emt 0:01:55]} O-O-O {[%emt 0:05:32]} 12. Qc2 {[%emt 0:19:38]} Bh3 {[%emt 0:14:58]} 13. Nc3 {[%emt 0:04:37]} Bxg2 {[%emt 0:00:13]} 14. Kxg2 {[%emt 0:00:02]} Bf6 {[%emt 0:07:45]} (14... f5 $11) 15. Qb3 {[%emt 0:12:37]} e6 {[%emt 0:12:17]} 16. e4 {[%emt 0:10:18]} ({Better is} 16. h4 $14) 16... g5 $11 {[%emt 0:07:47][%cal Og5g4]} (16... Bxd4 17. Be3 e5 18. Nxe5 Nxe5 19. Bxd4 $18) (16... Nxd4 $6 17. Nxd4 Bxd4 18. Nb5 $18) 17. e5 {[%emt 0:07:29]} (17. Be3 $11) 17... g4 {[%emt 0:02:35]} 18. Ng1 {[%emt 0:00:42]} Be7 {[%emt 0:04:58]} (18... Nxd4 19. Rxd4 Qxd4 20. exf6 $11) 19. Nge2 {[%emt 0:00:12]} h5 {[%emt 0:02:51]} 20. Be3 {[%emt 0:02:13]} h4 {[%emt 0:00:42]} 21. Nf4 {[%emt 0:01:18]} h3+ {[%emt 0:00:24]} 22. Kg1 {[%emt 0:00:11]} Bg5 {[%emt 0:00:51]} 23. Ne4 {[%emt 0:01:18][%cal Od4d5]} Bxf4 {[%emt 0:02:24]} 24. Nf6 {[%emt 0:00:06] [#]} Qe7 {[%emt 0:00:06]} ({But not} 24... Na5 $6 25. Nxd7 Nxb3 26. Nxb6+ axb6 27. axb3 $11) (24... Nxd4 $1 $17 {( -> ...Qc6)} 25. Rxd4 Qc6) 25. Nxg8 {[%emt 0:00:09]} ({Much weaker is} 25. Bxf4 Rg6 26. Qc3 Nd5 27. Nxd5 Rxd5 $17) 25... Rxg8 {[%emt 0:00:04]} 26. Bxf4 {[%emt 0:01:05]} ({Don't play} 26. gxf4 Nd5 27. Qd3 Qh4 $17) 26... Nd5 {[%emt 0:00:09]} (26... Qd7 $11 27. Be3 Na5) 27. Qc2 {[%emt 0:04:28]} f5 {[%emt 0:09:05]} (27... Qd7 $11 {keeps the balance.} 28. Be3 Rg6) 28. a3 {[%emt 0:03:37]} ({White should try} 28. exf6 $16 Nxf6 29. Rac1) 28... Qf7 {[%emt 0:00:50]} 29. Qd2 {[%emt 0:17:23] Weighted Error Value: White=0.20 (precise) /Black=0.22 (precise) .  Mistake:       	White=4     	Black=4      Inaccurate:     	White=4     	Black=4      OK:         	White=5     	Black=12     Best:        	White=2     	---        Strong:       	White=1     	---} (29. b4 $14) 1/2-1/2

[Event "FIDE WCCC Open-12 2024"]
[Site "Montesilvano"]
[Date "2024.11.19"]
[Round "5.37"]
[White "Wang, Zihao(Sh)"]
[Black "El Zein, Bassam"]
[Result "1/2-1/2"]
[ECO "B02"]
[WhiteElo "1838"]
[BlackElo "1947"]
[Annotator "NA RC"]
[PlyCount "107"]
[EventDate "2024.11.18"]
[EventType "swiss"]
[EventCountry "ITA"]
[SourceTitle "playchess.com"]
[Source "ChessBase"]
[SourceQuality "1"]
[TimeControl "5400+30"]

1. e4 {[%emt 0:00:14]} c5 {[%emt 0:00:06]} 2. Nf3 {[%emt 0:00:06]} Nf6 {[%emt 0:00:07]} 3. Nc3 {[%emt 0:00:44]} d5 {[%emt 0:00:10]} 4. exd5 {[%emt 0:04:43]} Nxd5 {[%emt 0:00:18]} 5. d4 {[%emt 0:00:04]} Nxc3 {[%emt 0:00:52]} 6. bxc3 {[%emt 0:00:10]} e6 {[%emt 0:00:03]} 7. Bd3 {[%emt 0:00:36]} Nc6 {[%emt 0:00:13]} 8. O-O {[%emt 0:00:08]} Be7 {[%emt 0:00:22]} 9. Be3 {[%emt 0:00:30]} Bf6 {[%emt 0:00:15]} 10. Be4 {[%emt 0:01:42]} O-O {[%emt 0:00:55]} 11. Rb1 {[%emt 0:00:26]} Qa5 {[%emt 0:01:14]} 12. Qd3 {[%emt 0:01:59]} h6 {[%emt 0:01:16]} 13. Qc4 {[%emt 0:02:05]} cxd4 {[%emt 0:01:38]} 14. cxd4 {[%emt 0:00:22]} Ne7 {[%emt 0:00:13]} 15. Bd2 {[%emt 0:01:31]} Qh5 {[%emt 0:00:43]} 16. h3 {[%emt 0:01:30]} Nf5 {[%emt 1:30:05]} 17. Qa4 {[%emt 0:11:11]} Nd6 {[%emt 0:00:00]} 18. Bd3 {[%emt 0:00:19]} Rd8 {[%emt 0:00:00]} 19. Bf4 {[%emt 0:02:06]} Nf5 {[%emt 0:00:00]} 20. Bc7 {[%emt 0:04:31]} Bd7 {[%emt 0:00:00]} 21. Qb3 {[%emt 0:01:36]} Rdc8 {[%emt 0:00:00]} 22. Qxb7 {[%emt 0:01:42]} Ne7 {[%emt 0:00:00]} 23. Bb5 {[%emt 0:03:40]} Bxb5 {[%emt 0:00:00]} 24. Rxb5 {[%emt 0:00:02]} Qg6 {[%emt 0:00:00]} 25. Ne5 {[%emt 0:03:59]} Qxc2 {[%emt 0:00:00]} 26. Rc5 {[%emt 0:00:15]} Qxa2 {[%emt 0:00:00]} 27. Rfc1 {[%emt 0:14:23]} Bg5 {[%emt 0:00:00]} 28. R1c4 {[%emt 0:00:11]} Qa1+ {[%emt 0:00:00]} 29. Kh2 {[%emt 0:00:06]} Qf1 {[%emt 0:00:00]} 30. Rc2 {[%emt 0:04:01]} Re8 {[%emt 0:00:00]} 31. Qe4 {[%emt 0:04:32]} Nd5 {[%emt 0:00:00]} 32. Bd6 {[%emt 0:02:57]} Rad8 {[%emt 0:00:00]} 33. Rc6 {[%emt 0:00:44]} a5 {[%emt 0:00:00]} 34. g3 {[%emt 0:05:17]} Qd1 {[%emt 0:00:00]} 35. h4 {[%emt 0:01:32]} f5 {[%emt 0:00:00]} 36. Qe2 {[%emt 0:02:19]} Qxe2 {[%emt 0:00:00]} 37. Rxe2 {[%emt 0:00:01]} Bf6 {[%emt 0:00:00]} 38. Ra2 {[%emt 0:00:39]} Nb4 {[%emt 0:00:00]} 39. Bxb4 {[%emt 0:00:09]} axb4 {[%emt 0:00:00]} 40. Rc4 {[%emt 0:01:40]} b3 {[%emt 0:00:00]} 41. Re2 {[%emt 0:01:34]} Rb8 {[%emt 0:00:00]} 42. Rb2 {[%emt 0:00:32]} Bxe5 {[%emt 0:00:00]} 43. dxe5 {[%emt 0:00:04]} Rb5 {[%emt 0:00:00]} 44. Rc3 {[%emt 0:00:56]} Reb8 {[%emt 0:00:00]} 45. f4 {[%emt 0:01:21]} Kf7 {[%emt 0:00:00]} 46. Kg2 {[%emt 0:01:09]} R8b6 {[%emt 0:00:00]} 47. Kf3 {[%emt 0:00:28]} Kg6 {[%emt 0:00:00]} 48. Rd3 {[%emt 0:01:15]} Kh5 {[%emt 0:00:00]} 49. Rc3 {[%emt 0:00:44]} Rb4 {[%emt 0:00:00]} 50. Rd3 {[%emt 0:00:50]} g5 {[%emt 0:00:00]} 51. hxg5 {[%emt 0:00:06]} hxg5 {[%emt 0:00:00]} 52. Rc3 {[%emt 0:00:51]} g4+ {[%emt 0:00:00]} 53. Kf2 {[%emt 0:00:49]} Kg6 {[%emt 0:00:00]} 54. Rd3 {[%emt 0:00:10]} 1/2-1/2

[Event "FIDE WCCC Open-12 2024"]
[Site "Montesilvano"]
[Date "2024.11.19"]
[Round "5.38"]
[White "Zhang, Haoxuan"]
[Black "Mikolavicius, Julius"]
[Result "1-0"]
[ECO "B07"]
[WhiteElo "1951"]
[BlackElo "1746"]
[Annotator "RC"]
[PlyCount "109"]
[EventDate "2024.11.18"]
[EventType "swiss"]
[EventCountry "ITA"]
[SourceTitle "playchess.com"]
[Source "ChessBase"]
[SourceQuality "1"]
[TimeControl "5400+30"]

1. e4 {[%emt 0:00:11]} d6 {[%emt 0:00:05]} 2. d4 {[%emt 0:00:05]} Nf6 {[%emt 0:00:03]} 3. Nc3 {[%emt 0:00:06]} c6 {[%emt 0:00:03]} 4. f4 {[%emt 0:00:10]} Qa5 {[%emt 0:00:06]} 5. Bd3 {[%emt 0:02:41]} e5 {[%emt 0:00:07]} 6. Nf3 {[%emt 0:02:22]} Nbd7 {[%emt 0:03:15]} 7. Be3 {[%emt 0:11:06]} Be7 {[%emt 0:03:09]} 8. O-O {[%emt 0:10:18]} h5 {[%emt 0:10:07]} 9. Qe1 {[%emt 0:11:06]} Qc7 {[%emt 0:07:42]} 10. h3 {[%emt 0:04:11]} b6 {[%emt 0:10:35]} 11. a4 {[%emt 0:03:41]} Bb7 {[%emt 0:03:08]} 12. b4 {[%emt 0:06:35]} O-O {[%emt 0:09:02]} 13. Qg3 {[%emt 0:02:10]} Ne8 {[%emt 0:09:43]} 14. a5 {[%emt 0:09:38]} Bf6 {[%emt 0:04:49]} 15. a6 {[%emt 0:02:42]} Bc8 {[%emt 0:02:29]} 16. b5 {[%emt 0:01:22]} exd4 {[%emt 0:01:42]} 17. Nxd4 {[%emt 0:00:37]} Nc5 {[%emt 0:01:26]} 18. bxc6 {[%emt 0:00:59]} Nxd3 {[%emt 0:01:14]} 19. Nd5 {[%emt 0:01:49]} Qd8 {[%emt 0:00:52]} 20. cxd3 {[%emt 0:00:38]} Be6 {[%emt 0:01:10]} 21. Nxf6+ {[%emt 0:00:32]} Qxf6 {[%emt 0:02:25]} 22. f5 {[%emt 0:00:42]} Bc8 {[%emt 0:00:12]} 23. Nb5 {[%emt 0:00:11]} Qe7 {[%emt 0:00:45]} 24. Bd4 {[%emt 0:00:11]} f6 {[%emt 0:00:22]} 25. Rfc1 {[%emt 0:00:28]} Nc7 {[%emt 0:00:59]} 26. Nxc7 {[%emt 0:00:38]} Qxc7 {[%emt 0:00:02]} 27. Qe1 {[%emt 0:03:13]} Re8 {[%emt 0:00:18]} 28. Qb4 {[%emt 0:00:13]} Kh7 {[%emt 0:00:44]} 29. Qb5 {[%emt 0:00:34]} Rf8 {[%emt 0:01:03]} 30. Be3 {[%emt 0:00:18]} g5 {[%emt 0:00:17]} 31. Qd5 {[%emt 0:01:16]} Rg8 {[%emt 0:00:29]} 32. g4 {[%emt 0:01:09]} h4 {[%emt 0:00:24]} 33. Rcb1 {[%emt 0:01:02]} Re8 {[%emt 0:00:29]} 34. Bd4 {[%emt 0:00:22]} Rf8 {[%emt 0:00:14]} 35. Rb5 {[%emt 0:00:09]} Kg7 {[%emt 0:00:28]} 36. Bb2 {[%emt 0:00:50]} Rf7 {[%emt 0:00:46]} 37. Kf2 {[%emt 0:00:41]} Kf8 {[%emt 0:01:06]} 38. d4 {[%emt 0:00:30]} Re7 {[%emt 0:00:55]} 39. Ra4 {[%emt 0:01:05]} Bd7 {[%emt 0:00:13]} 40. cxd7 {[%emt 0:00:53]} Qc2+ {[%emt 0:00:11]} 41. Ke3 {[%emt 0:00:05]} Rd8 {[%emt 0:00:19]} 42. Rc4 {[%emt 0:01:21]} Qg2 {[%emt 0:01:51]} 43. e5 {[%emt 0:04:08]} Qg1+ {[%emt 0:01:45]} 44. Kd2 {[%emt 0:00:22]} fxe5 {[%emt 0:03:38]} 45. dxe5 {[%emt 0:01:15]} Qf2+ {[%emt 0:01:13]} 46. Kc1 {[%emt 0:00:19]} Qe1+ {[%emt 0:00:21]} 47. Qd1 {[%emt 0:01:06]} Qe3+ {[%emt 0:00:49]} 48. Kb1 {[%emt 0:00:04]} Rdxd7 {[%emt 0:01:01]} 49. e6 {[%emt 0:00:29]} Rd8 {[%emt 0:01:31]} 50. Qd4 {[%emt 0:00:06]} Qg1+ {[%emt 0:02:31]} 51. Qxg1 {[%emt 0:01:44]} d5 {[%emt 0:00:16]} 52. Qd4 {[%emt 0:00:32]} Rh7 {[%emt 0:00:14]} 53. Qf6+ {[%emt 0:00:07]} Ke8 {[%emt 0:00:09]} 54. Ba3 {[%emt 0:00:07]} dxc4 {[%emt 0:00:08]} 55. Qf8# {[%emt 0:00:42]} 1-0

[Event "FIDE WCCC Open-12 2024"]
[Site "Montesilvano"]
[Date "2024.11.19"]
[Round "5.39"]
[White "Skytte, Robert"]
[Black "Wang, William Kaiyuan"]
[Result "1-0"]
[ECO "C57"]
[WhiteElo "1925"]
[BlackElo "1715"]
[Annotator "NA RC"]
[PlyCount "113"]
[EventDate "2024.11.18"]
[EventType "swiss"]
[EventCountry "ITA"]
[SourceTitle "playchess.com"]
[Source "ChessBase"]
[SourceQuality "1"]
[TimeControl "5400+30"]

1. e4 {[%emt 0:00:04]} e5 {[%emt 0:00:03]} 2. Nf3 {[%emt 0:00:15]} Nc6 {[%emt 0:00:04]} 3. Bc4 {[%emt 0:00:06]} Nf6 {[%emt 0:00:05]} 4. Ng5 {[%emt 0:01:15]} d5 {[%emt 0:00:06]} 5. exd5 {[%emt 0:00:09]} b5 {[%emt 0:00:04]} 6. Bf1 {[%emt 0:00:31]} Nxd5 {[%emt 0:02:26]} 7. Bxb5 {[%emt 0:00:15]} Bb7 {[%emt 0:01:18]} 8. Qh5 {[%emt 0:00:18]} Qf6 {[%emt 0:03:08]} 9. d4 {[%emt 0:25:10]} exd4 {[%emt 0:13:16]} 10. O-O {[%emt 0:03:08]} O-O-O {[%emt 0:03:25]} 11. Nxf7 {[%emt 0:00:56]} g6 {[%emt 0:06:06]} 12. Qg4+ {[%emt 0:01:32]} Kb8 {[%emt 0:00:52]} 13. Nxd8 {[%emt 0:00:50]} Qxd8 {[%emt 0:03:12]} 14. Bg5 {[%emt 0:02:59]} Qd6 {[%emt 0:00:45]} 15. Bxc6 {[%emt 0:01:59]} Qxc6 {[%emt 0:00:29]} 16. Qxd4 {[%emt 0:01:39]} Rg8 {[%emt 0:02:33]} 17. Nc3 {[%emt 0:02:33]} Nb6 {[%emt 0:03:14]} 18. Qg4 {[%emt 0:02:59]} Bd6 {[%emt 0:04:37]} 19. Rfe1 {[%emt 0:04:41]} h5 {[%emt 0:03:42]} 20. Qe4 {[%emt 0:02:23]} Qd7 {[%emt 0:03:00]} 21. Qe6 {[%emt 0:01:47]} Qh7 {[%emt 0:04:31]} 22. Rad1 {[%emt 0:04:50]} Rf8 {[%emt 0:05:52]} 23. Rxd6 {[%emt 0:01:07]} Bc8 {[%emt 0:01:46]} 24. Rxb6+ {[%emt 0:01:32]} axb6 {[%emt 0:00:16]} 25. Qc4 {[%emt 0:02:01]} Qd7 {[%emt 0:00:45]} 26. Re7 {[%emt 0:03:13]} Qd6 {[%emt 0:02:55]} 27. h3 {[%emt 0:02:34]} Rf5 {[%emt 0:01:19]} 28. Nb5 {[%emt 0:01:35]} Qd1+ {[%emt 0:02:17]} 29. Kh2 {[%emt 0:00:06]} Qd8 {[%emt 0:03:38]} 30. Qa4 {[%emt 0:00:56]} Rxb5 {[%emt 0:04:00]} 31. Qxb5 {[%emt 0:00:10]} Qd6+ {[%emt 0:01:02]} 32. Qe5 {[%emt 0:00:19]} Qc6 {[%emt 0:00:17]} 33. Bf4 {[%emt 0:00:45]} Bb7 {[%emt 0:02:00]} 34. Qxc7+ {[%emt 0:01:37]} Qxc7 {[%emt 0:00:53]} 35. Rxc7 {[%emt 0:00:08]} Ka7 {[%emt 0:00:07]} 36. Be3 {[%emt 0:00:14]} Ka6 {[%emt 0:00:07]} 37. Rxb7 {[%emt 0:00:06]} Kxb7 {[%emt 0:00:06]} 38. Bxb6 {[%emt 0:00:04]} Kxb6 {[%emt 0:00:07]} 39. a4 {[%emt 0:00:07]} g5 {[%emt 0:00:04]} 40. b4 {[%emt 0:00:05]} g4 {[%emt 0:00:07]} 41. c4 {[%emt 0:00:05]} g3+ {[%emt 0:00:06]} 42. Kxg3 {[%emt 0:00:05]} Kb7 {[%emt 0:00:06]} 43. b5 {[%emt 0:00:06]} Kb6 {[%emt 0:00:05]} 44. Kh4 {[%emt 0:00:06]} Ka7 {[%emt 0:00:05]} 45. a5 {[%emt 0:00:05]} Kb7 {[%emt 0:00:03]} 46. c5 {[%emt 0:00:06]} Ka7 {[%emt 0:00:04]} 47. c6 {[%emt 0:00:11]} Ka8 {[%emt 0:00:08]} 48. b6 {[%emt 0:00:05]} Kb8 {[%emt 0:00:05]} 49. c7+ {[%emt 0:00:07]} Kb7 {[%emt 0:00:03]} 50. a6+ {[%emt 0:00:06]} Kxb6 {[%emt 0:00:05]} 51. c8=Q {[%emt 0:00:09]} Kb5 {[%emt 0:00:02]} 52. Qb7+ {[%emt 0:00:18]} Kc5 {[%emt 0:00:04]} 53. a7 {[%emt 0:00:09]} Kd6 {[%emt 0:00:00]} 54. a8=Q {[%emt 0:00:00]} Ke5 {[%emt 0:00:00]} 55. Qe7+ {[%emt 0:00:00]} Kd4 {[%emt 0:00:00]} 56. Qae4+ {[%emt 0:00:00]} Kc3 {[%emt 0:00:00]} 57. Q7b4# {[%emt 0:00:00]} 1-0

[Event "FIDE WCCC Open-12 2024"]
[Site "Montesilvano"]
[Date "2024.11.19"]
[Round "5.40"]
[White "Ilcic, Aleksa"]
[Black "Yin, Milo"]
[Result "1-0"]
[ECO "D35"]
[WhiteElo "1757"]
[BlackElo "1925"]
[Annotator "RC"]
[PlyCount "101"]
[EventDate "2024.11.18"]
[EventType "swiss"]
[EventCountry "ITA"]
[SourceTitle "playchess.com"]
[Source "ChessBase"]
[SourceQuality "1"]
[TimeControl "5400+30"]

1. d4 {[%emt 0:00:02]} d5 {[%emt 0:00:13]} 2. c4 {[%emt 0:00:08]} e6 {[%emt 0:00:06]} 3. cxd5 {[%emt 0:00:11]} exd5 {[%emt 0:00:12]} 4. Nc3 {[%emt 0:00:09]} Nf6 {[%emt 0:00:09]} 5. Bg5 {[%emt 0:00:11]} c6 {[%emt 0:00:12]} 6. e3 {[%emt 0:00:12]} Be6 {[%emt 0:00:08]} 7. Bd3 {[%emt 0:00:57]} Nbd7 {[%emt 0:00:08]} 8. Nge2 {[%emt 0:01:23]} h6 {[%emt 0:00:11]} 9. Bxf6 {[%emt 0:01:31]} Qxf6 {[%emt 0:04:09]} 10. Qc2 {[%emt 0:14:12]} O-O-O {[%emt 0:03:01]} 11. Nf4 {[%emt 0:07:26]} Kb8 {[%emt 0:03:34]} 12. h4 {[%emt 0:04:28]} Rc8 {[%emt 0:15:31]} 13. Rc1 {[%emt 0:26:30]} Qd8 {[%emt 0:12:09]} 14. O-O {[%emt 0:17:03]} Bd6 {[%emt 0:10:10]} 15. g3 {[%emt 0:09:48]} Bxf4 {[%emt 0:10:19]} 16. exf4 {[%emt 0:01:36]} Bh3 {[%emt 0:00:35]} 17. Rfe1 {[%emt 0:00:22]} g5 {[%emt 0:00:42]} 18. Bf5 {[%emt 0:04:38]} Bxf5 {[%emt 0:00:52]} 19. Qxf5 {[%emt 0:00:08]} gxh4 {[%emt 0:00:22]} 20. Qxf7 {[%emt 0:01:51]} Rf8 {[%emt 0:07:14]} 21. Qe7 {[%emt 0:00:31]} hxg3 {[%emt 0:01:54]} 22. fxg3 {[%emt 0:00:10]} Nf6 {[%emt 0:08:00]} 23. Qxd8 {[%emt 0:02:28]} Rcxd8 {[%emt 0:00:29]} 24. Re7 {[%emt 0:00:08]} Rg8 {[%emt 0:09:27]} 25. Kf2 {[%emt 0:00:44]} Rde8 {[%emt 0:04:47]} 26. Rxe8+ {[%emt 0:01:14]} Rxe8 {[%emt 0:00:35]} 27. Kf3 {[%emt 0:00:36]} Kc7 {[%emt 0:01:56]} 28. Rc2 {[%emt 0:01:38]} Kd7 {[%emt 0:02:04]} 29. Re2 {[%emt 0:02:15]} Rg8 {[%emt 0:01:35]} 30. Re5 {[%emt 0:00:53]} Ng4 {[%emt 0:01:46]} 31. Rh5 {[%emt 0:00:21]} Ke6 {[%emt 0:02:07]} 32. Nd1 {[%emt 0:00:22]} Kd7 {[%emt 0:01:16]} 33. Rh4 {[%emt 0:00:43]} Nf6 {[%emt 0:00:35]} 34. Rxh6 {[%emt 0:00:28]} Ne4 {[%emt 0:00:14]} 35. g4 {[%emt 0:00:42]} a5 {[%emt 0:00:36]} 36. Rh7+ {[%emt 0:00:17]} Kc8 {[%emt 0:00:30]} 37. g5 {[%emt 0:00:08]} b5 {[%emt 0:00:33]} 38. Re7 {[%emt 0:00:51]} Kd8 {[%emt 0:00:35]} 39. Ra7 {[%emt 0:00:35]} Kc8 {[%emt 0:00:18]} 40. Ra8+ {[%emt 0:00:08]} Kb7 {[%emt 0:00:32]} 41. Rxg8 {[%emt 0:00:03]} Kb6 {[%emt 0:00:38]} 42. Re8 {[%emt 0:00:14]} Nd2+ {[%emt 0:00:26]} 43. Ke2 {[%emt 0:00:17]} Nc4 {[%emt 0:00:29]} 44. g6 {[%emt 0:00:19]} c5 {[%emt 0:00:31]} 45. dxc5+ {[%emt 0:00:11]} Kxc5 {[%emt 0:00:18]} 46. Rc8+ {[%emt 0:00:06]} Kb4 {[%emt 0:00:31]} 47. Rxc4+ {[%emt 0:00:26]} dxc4 {[%emt 0:00:47]} 48. g7 {[%emt 0:00:24]} Ka4 {[%emt 0:00:28]} 49. g8=Q {[%emt 0:00:14]} Kb4 {[%emt 0:00:19]} 50. Qf8+ {[%emt 0:00:27]} Ka4 {[%emt 0:00:11]} 51. Qa3# {[%emt 0:00:02]} 1-0